fUSD/lending_fUSD_20240902
["ID","MTS","AMOUNT","RATE_DAILY","PERIOD"]
[337008994,1725311444945,-483.01750003,0.00015,2]
[337008995,1725311444956,-9012.60170715,0.00015,2]
[337009004,1725311446125,-939.78042536,0.00015,2]
[337009005,1725311446136,-888.6028672,0.00015,2]
[337009006,1725311446147,-508.5,0.00015,2]
[337009007,1725311446187,-2733.38035353,0.00015,2]
[337009008,1725311446199,-4994.61127258,0.00015,2]
[337009009,1725311446210,-594004.8269427,0.00015,2]
[337009010,1725311446221,-442876.17959202,0.00015,2]
[337009011,1725311446233,-1280.81103182,0.00015,2]
[337009012,1725311446248,-17614.77864084,0.00015,2]
[337009013,1725311446455,-195069.3734854,0.00015,2]
[337009016,1725311446598,-94436.42029702,0.00015,2]
[337009017,1725311446609,-1486.66666005,0.00015,2]
[337009018,1725311446620,-581.02513369,0.00015,2]
[337009019,1725311446631,-904.64662748,0.00015,2]
[337009020,1725311446641,-392.18531531,0.00015,2]
[337009021,1725311446652,-555.0,0.00015,2]
[337009022,1725311446662,-300.025825,0.00015,2]
[337009023,1725311446673,-2800.21661438,0.00015,2]
[337009024,1725311446685,-360.08234564,0.00015,2]
[337009025,1725311446696,-16006.77443542,0.00015,2]
[337009026,1725311446706,-1246.58900404,0.00015,2]
[337009027,1725311446720,-1189.02918722,0.00015,2]
[337009028,1725311446731,-265.00426271,0.00015,2]
[337009029,1725311446741,-335.23446328,0.00015,2]
[337009030,1725311446751,-1078.57073008,0.00015,2]
[337009031,1725311446762,-1325.98466,0.00015,2]
[337009032,1725311446772,-15553.24533523,0.00015,2]
[337009033,1725311446783,-914.18041574,0.00015,2]
[337009034,1725311600059,162.29,0.00010959,2]
[337009035,1725311847408,502.07,0.00012688,2]
[337009038,1725311925014,550.0,0.00011,2]
[337009042,1725312308968,1050.0,0.0001099,2]
[337009043,1725312320175,7597.54110632,9e-05,2]
[337009044,1725312354274,138.57929368,0.00010399,2]
[337009045,1725312354297,3802.15417924,0.00010399,2]
[337009046,1725312354844,5895.88382853,6.94e-05,2]
[337009047,1725312430112,502.66,0.00012438,2]
[337009048,1725312480185,204.62312072,0.0001,2]
[337009052,1725312515161,7044.46696384,0.00010998,2]
[337009077,1725312632283,-333.39099683,0.00013981,2]
[337009079,1725312632292,-2101.9998,0.00014081,2]
[337009080,1725312632302,-250.0,0.00014132,2]
[337009082,1725312632311,-1850.0,0.00014178,2]
[337009083,1725312632321,-335.4322,0.00014181,2]
[337009084,1725312632331,-2729.51804322,0.00014181,2]
[337009085,1725312632340,-1500.0,0.0001425,2]
[337009086,1725312632350,-250.0,0.00014295,2]
[337009087,1725312632359,-150.0,0.00014323,2]
[337009088,1725312632370,-489.42,0.00014344,2]
[337009089,1725312632379,-521.06,0.00014344,2]
[337009090,1725312632389,-3848.78,0.00014376,2]
[337009091,1725312632398,-502.66,0.00014702,2]
[337009092,1725312632410,-250.0,0.00014722,2]
[337009093,1725312632419,-499.99,0.00014722,2]
[337009094,1725312632429,-466.77528494,0.00014722,2]
[337009095,1725312632440,-644.04471506,0.00014722,2]
[337009096,1725312632449,-1542.12711,0.0001485,2]
[337009097,1725312632459,-2501.1838,0.0001489,2]
[337009098,1725312632468,-2500.0,0.0001489,2]
[337009099,1725312632478,-267.81751473,0.00014899,2]
[337009100,1725312632489,-1446.28093608,0.00014899,2]
[337009101,1725312632504,-561.75930824,0.00014899,2]
[337009102,1725312632516,-916.50168511,0.00014899,2]
[337009103,1725312632527,-3985.67127648,0.00014899,2]
[337009104,1725312632537,-150.0,0.00014899,2]
[337009106,1725312632547,-813.0112,0.000149,2]
[337009108,1725312632559,-177.3960758,0.000149,2]
[337009110,1725312632569,-5833.7828841,0.000149,2]
[337009112,1725312632582,-1666.2171159,0.000149,2]
[337009114,1725312632591,-157.63939403,0.000149,2]
[337009116,1725312632602,-160.36941333,0.000149,2]
[337009118,1725312632612,-176.23802848,0.000149,2]
[337009120,1725312632621,-206.32931428,0.000149,2]
[337009121,1725312632635,-500.0,0.00014973,2]
[337009122,1725312632644,-480.28086375,0.0001499,3]
[337009123,1725312632656,-402.31913625,0.0001499,3]
[337009124,1725312632666,-151.42,0.0001499,2]
[337009125,1725312632675,-576.31898001,0.00014999,2]
[337009126,1725312632687,-324.28207353,0.00014999,2]
[337009127,1725312632696,-158.71323903,0.00015,2]
[337009128,1725312632711,-594.47658,0.00015,2]
[337009129,1725312632723,-16504.787533,0.00015,2]
[337009130,1725312632734,-377.86782155,0.00015,2]
[337009132,1725312638327,-705.3146958,0.00015,2]
[337009133,1725312638444,-608.41370776,0.00015,2]
[337009134,1725312638456,-758.11221771,0.00015,2]
[337009135,1725312638467,-339.1733676,0.00015,2]
[337009136,1725312638478,-12851.8,0.00015,2]
[337009137,1725312638489,-1710.00000005,0.00015,2]
[337009138,1725312638566,-1200.0,0.00015,2]
[337009139,1725312638577,-28686.90924801,0.00015,2]
[337009140,1725312638593,-1351.70136552,0.00015,2]
[337009141,1725312638605,-8173.52989368,0.00015,2]
[337009142,1725312638634,-9005.59263688,0.00015,2]
[337009144,1725312638646,-281.11603296,0.00015,2]
[337009147,1725312638657,-1044.71571817,0.00015,2]
[337009176,1725312640344,-1614.56158587,0.00015,2]
[337009177,1725312642261,-293.2019659,0.00015,2]
[337009178,1725312642273,-274.10998042,0.00015,2]
[337009179,1725312642377,-1904.70340738,0.00015,2]
[337009180,1725312642388,-596.02002978,0.00015,2]
[337009181,1725312642437,-3419.99457149,0.00015,2]
[337009182,1725312642643,-33305.49298214,0.00015,2]
[337009183,1725312642656,-4824.75458289,0.00015,2]
[337009184,1725312642667,-430.83949475,0.00015,2]
[337009204,1725312643313,-4908.26999999,0.00015,2]
[337009205,1725312643325,-510.94,0.00015,2]
[337009206,1725312643337,-594.17,0.00015,2]
[337009208,1725312645951,-1056.06830296,0.00015,2]
[337009209,1725312645981,-1399.85650094,0.00015,2]
[337009211,1725312646428,-17802.05782836,0.00015,2]
[337009212,1725312646440,-940.87063428,0.00015,2]
[337009213,1725312646607,-1368.76458331,0.00015,2]
[337009244,1725312894941,155.16,0.00010959,2]
[337009245,1725313011716,478.23,0.00011641,2]
[337009246,1725313135464,-200.33,0.00013548,2]
[337009247,1725313135487,-619.94,0.00013572,2]
[337009248,1725313135508,-250.0,0.00013572,2]
[337009249,1725313135529,-183.9,0.00013572,2]
[337009250,1725313135551,-7751.99,0.00013576,2]
[337009251,1725313135573,-250.0,0.00013586,2]
[337009252,1725313135594,-250.0,0.00013633,2]
[337009253,1725313135616,-488.07,0.0001379,2]
[337009254,1725313135637,-150.0,0.00013826,2]
[337009255,1725313135659,-1000.0,0.00013903,2]
[337009256,1725313135680,-478.23,0.00013904,2]
[337009257,1725313137971,1111.90404746,0.00013576,2]
[337009258,1725313153620,169.71,0.00013843,2]
[337009259,1725313153987,169.71,0.00013854,2]
[337009260,1725313154252,169.71,0.00013866,2]
[337009261,1725313154459,169.71,0.00013877,2]
[337009262,1725313154685,169.71,0.00013889,2]
[337009263,1725313154913,169.71,0.000139,2]
[337009264,1725313155157,169.71,0.00013912,2]
[337009265,1725313164352,17442.37265254,0.00013877,2]
[337009266,1725313461210,192.53,0.00010959,2]
[337009267,1725313589127,468.98,0.00011619,2]
[337009268,1725313698881,-6810.33,0.00013463,2]
[337009269,1725313727411,550.0,0.00011,2]
[337009270,1725313749299,-1500.0,0.00013463,2]
[337009271,1725313803227,-800.0,0.00013491,2]
[337009272,1725313820198,-305.59,0.00013519,2]
[337009273,1725313820220,-283.54,0.00013526,2]
[337009274,1725313820242,-250.0,0.0001355,2]
[337009275,1725313820264,-250.0,0.00013598,2]
[337009281,1725313831433,-150.0,0.00013556,2]
[337009282,1725313831442,-194.40721085,0.00013634,2]
[337009283,1725313831547,-55.59278915,0.00013634,2]
[337009284,1725313831556,-174.41,0.00013675,2]
[337009285,1725313831566,-244.03,0.00013678,2]
[337009286,1725313831575,-200.0,0.00013699,2]
[337009287,1725313831585,-200.0,0.00013717,2]
[337009288,1725313831595,-202.29919044,0.00013883,2]
[337009289,1725313831606,-266.68080956,0.00013883,2]
[337009290,1725313831616,-179.36,0.00014074,2]
[337009291,1725313831626,-499.99,0.00014074,2]
[337009292,1725313831635,-157.57,0.00014295,2]
[337009293,1725313831645,-157.57,0.000143,2]
[337009294,1725313831654,-157.57,0.00014306,2]
[337009295,1725313831663,-157.57,0.00014311,2]
[337009296,1725313831673,-157.57,0.00014317,2]
[337009297,1725313831682,-157.57,0.00014322,2]
[337009298,1725313831691,-157.57,0.00014328,2]
[337009299,1725313831701,-157.57,0.00014333,2]
[337009300,1725313831710,-157.57,0.00014339,2]
[337009301,1725313831719,-157.57,0.00014344,2]
[337009302,1725313831729,-157.57,0.0001435,2]
[337009303,1725313831738,-157.57,0.00014355,2]
[337009304,1725313831748,-157.57,0.00014361,2]
[337009305,1725313831757,-300.0,0.00014366,2]
[337009306,1725313831767,-157.57,0.00014366,2]
[337009307,1725313831777,-172.97,0.00014479,2]
[337009308,1725313831787,-150.0,0.00014479,2]
[337009309,1725313831796,-8306.23475583,0.00014799,2]
[337009310,1725313831805,-1592.06824958,0.0001485,2]
[337009311,1725313831814,-1898.48092,0.0001485,2]
[337009312,1725313831824,-264.48,0.0001488,3]
[337009313,1725313831833,-2061.3839,0.0001489,2]
[337009314,1725313831842,-9994.0787,0.0001489,2]
[337009315,1725313831852,-4001.17235029,0.0001489,2]
[337009316,1725313831864,-2110.15651431,0.0001489,2]
[337009317,1725313831876,-457.29170079,0.0001489,2]
[337009318,1725313831888,-5346.92488879,0.0001489,2]
[337009323,1725313837657,-914.81898883,0.0001489,2]
[337009324,1725313837669,-515.37635187,0.0001489,2]
[337009325,1725313837681,-9987.90608371,0.0001489,2]
[337009326,1725313837692,-11929.18119598,0.0001489,2]
[337009327,1725313837703,-1169.55400002,0.0001489,2]
[337009328,1725313837716,-1079.34910173,0.0001489,2]
[337009329,1725313837727,-1568.55859117,0.0001489,2]
[337009330,1725313837740,-424.5,0.0001489,2]
[337009331,1725313837752,-34040.28801778,0.0001489,2]
[337009332,1725313837764,-420.0,0.0001489,2]
[337009333,1725313837775,-23640.24197103,0.0001489,2]
[337009334,1725313837787,-22537.18002361,0.0001489,2]
[337009335,1725313837798,-5200.0,0.0001489,2]
[337009336,1725313837813,-3301.78382009,0.0001489,2]
[337009337,1725313837824,-290.9641,0.000149,2]
[337009338,1725313837835,-10302.25207991,0.000149,2]
[337009339,1725313837847,-450.95372915,0.000149,2]
[337009340,1725313837858,-3060.15071266,0.000149,2]
[337009341,1725313837870,-882.6,0.000149,2]
[337009342,1725313837883,-796.44791203,0.000149,2]
[337009343,1725313837895,-618.75914436,0.000149,2]
[337009344,1725313837909,-373.59450961,0.000149,2]
[337009352,1725313839568,-957.46343059,0.000149,2]
[337009353,1725313839682,-5785.73788169,0.000149,2]
[337009354,1725313839691,-483.0291,0.000149,2]
[337009355,1725313839701,-12061.7473,0.000149,2]
[337009356,1725313839710,-484.8763,0.000149,2]
[337009357,1725313839719,-176.80099602,0.000149,2]
[337009358,1725313839729,-157.63939403,0.000149,2]
[337009359,1725313839738,-163.67346564,0.000149,2]
[337009360,1725313839747,-158.39331482,0.000149,2]
[337009361,1725313839756,-334.74133646,0.000149,2]
[337009362,1725313839765,-500.0,0.00014973,2]
[337009363,1725313839774,-1342.09250376,0.0001499,3]
[337009364,1725313839785,-151.42,0.0001499,2]
[337009365,1725313839794,-3578.91334336,0.0001499,3]
[337009366,1725313839803,-225.28552677,0.00014999,2]
[337009367,1725313839812,-521.0,0.00015,2]
[337009368,1725313839821,-63367.6524067,0.00015,2]
[337009369,1725313839832,-49719.13696804,0.00015,2]
[337009370,1725313839843,-4459.23420041,0.00015,2]
[337009371,1725313839920,-5184.20181618,0.00015,2]
[337009372,1725313840096,-0.10129782,0.00015,2]
[337009373,1725313840107,-1972.47078717,0.00015,2]
[337009374,1725313841797,-1032.75,0.00015,2]
[337009375,1725313841808,-2727.62255209,0.00015,2]
[337009376,1725313841819,-82150.3198826,0.00015,2]
[337009409,1725313844658,-90464.22578558,0.00015,2]
[337009410,1725313844668,-441678.77421462,0.00015,2]
[337009413,1725313845551,-2973.42045,0.00015,2]
[337009414,1725313845889,-345.94954683,0.00015,2]
[337009415,1725313950445,198.81,0.00010959,2]
[337009416,1725313953092,626.0,0.000129,5]
[337009417,1725314178185,494.83,0.00011874,2]
[337009418,1725314302609,181.79,0.00010955,2]
[337009419,1725314501796,154.29,0.00010959,2]
[337009420,1725314668590,484.44,0.00011768,2]
[337009425,1725315031637,-150.0,0.00013575,2]
[337009426,1725315031647,-3842.88,0.00013634,2]
[337009427,1725315031656,-243.69,0.00013643,2]
[337009428,1725315031666,-1500.0,0.0001365,2]
[337009429,1725315031675,-2000.0,0.00013659,2]
[337009430,1725315031684,-174.41,0.00013666,2]
[337009431,1725315031694,-250.0,0.00013667,2]
[337009432,1725315031704,-1272.48,0.00013668,2]
[337009433,1725315031714,-250.0,0.00013673,2]
[337009434,1725315031723,-23900.0,0.00013683,2]
[337009435,1725315031732,-250.0,0.00013688,2]
[337009436,1725315031741,-499.99,0.00013688,2]
[337009437,1725315031750,-1000.0,0.0001369,2]
[337009438,1725315031759,-155.52,0.00013721,2]
[337009439,1725315031768,-62135.22095403,0.0001399,2]
[337009440,1725315031778,-30851.44799361,0.00014,7]
[337009441,1725315031787,-484.44,0.00014032,2]
[337009442,1725315031797,-153.65,0.0001427,2]
[337009443,1725315031807,-153.65,0.00014278,2]
[337009444,1725315031816,-153.65,0.00014286,2]
[337009445,1725315031825,-153.65,0.00014294,2]
[337009446,1725315031835,-153.65,0.00014302,2]
[337009447,1725315031844,-153.65,0.0001431,2]
[337009448,1725315031854,-153.65,0.00014318,2]
[337009449,1725315031863,-153.65,0.00014326,2]
[337009450,1725315031873,-153.65,0.00014334,2]
[337009451,1725315031883,-153.65,0.00014342,2]
[337009452,1725315031892,-200.0,0.000145,5]
[337009453,1725315031902,-318.553,0.000146,2]
[337009454,1725315031911,-500.0,0.000146,5]
[337009455,1725315031920,-1500.0,0.00014624,2]
[337009456,1725315031930,-1500.0,0.00014658,2]
[337009457,1725315031940,-1500.0,0.00014664,2]
[337009458,1725315031950,-1500.0,0.00014688,2]
[337009459,1725315031959,-792.66032082,0.00014699,2]
[337009460,1725315031968,-700.0,0.000147,5]
[337009461,1725315031978,-1500.0,0.00014717,2]
[337009462,1725315031987,-1500.0,0.0001472,2]
[337009464,1725315031996,-798.49848581,0.00014726,2]
[337009466,1725315032006,-1500.0,0.00014729,2]
[337009468,1725315032016,-300.0,0.00014745,2]
[337009470,1725315032025,-500.0,0.00014761,2]
[337009472,1725315032035,-284.02316336,0.00014775,2]
[337009474,1725315032043,-150.0,0.00014779,2]
[337009475,1725315032053,-1000.0,0.000148,5]
[337009476,1725315032062,-150.0,0.00014803,2]
[337009477,1725315032072,-1500.0,0.00014804,2]
[337009478,1725315032081,-150.0,0.00014805,2]
[337009479,1725315032090,-1500.0,0.00014818,2]
[337009480,1725315032099,-661.21,0.00014818,3]
[337009481,1725315032108,-150.0,0.0001482,2]
[337009482,1725315032117,-220.4,0.00014828,3]
[337009483,1725315032126,-298.55850002,0.00014838,2]
[337009484,1725315032136,-150.0,0.00014852,2]
[337009485,1725315032145,-1500.0,0.00014856,2]
[337009486,1725315032154,-150.0,0.00014865,2]
[337009487,1725315032164,-150.0,0.00014875,2]
[337009488,1725315032174,-1500.0,0.00014875,2]
[337009489,1725315032184,-150.0,0.00014887,2]
[337009490,1725315032193,-176.80099601,0.000149,2]
[337009491,1725315032202,-1300.0,0.000149,5]
[337009492,1725315032211,-150.0,0.00014917,2]
[337009493,1725315032220,-300.0,0.00014925,2]
[337009494,1725315032229,-150.0,0.00014968,2]
[337009495,1725315032238,-388.92563463,0.00014973,2]
[337009496,1725315032247,-3705.3027534,0.0001498,3]
[337009497,1725315032256,-741.06055068,0.00014987,3]
[337009498,1725315032265,-150.0,0.00014988,2]
[337009499,1725315032274,-7410.6055068,0.0001499,3]
[337009500,1725315032283,-826.15378638,0.0001499,3]
[337009501,1725315032292,-3717.69203871,0.0001499,3]
[337009502,1725315032301,-171.08649104,0.0001499,2]
[337009503,1725315032310,-155.29391759,0.00014997,2]
[337009504,1725315032319,-515.0,0.00015,2]
[337009505,1725315032328,-30591.02048542,0.00015,2]
[337009506,1725315032340,-1443.6854515,0.00015,2]
[337009507,1725315032351,-2423.11071755,0.00015,2]
[337009508,1725315032362,-889.7297262,0.00015,2]
[337009509,1725315032376,-5298.76851,0.00015,2]
[337009510,1725315032386,-10730.55001468,0.00015,2]
[337009511,1725315032397,-11506.71936319,0.00015,2]
[337009512,1725315032407,-7645.92971738,0.00015,2]
[337009513,1725315032419,-534.83187124,0.00015,2]
[337009514,1725315032434,-2553.19999998,0.00015,2]
[337009515,1725315032445,-12387.04239639,0.00015,2]
[337009516,1725315032455,-883.54995,0.00015,2]
[337009517,1725315032465,-846.47,0.00015,2]
[337009518,1725315032477,-350.2299999,0.00015,2]
[337009519,1725315032488,-462.53216332,0.00015,2]
[337009520,1725315032503,-10909.06374531,0.00015,2]
[337009521,1725315037876,-500.0,0.00014973,2]
[337009522,1725315037886,-6403.18681663,0.00015,2]
[337009523,1725315037897,-25411.38259017,0.00015,2]
[337009524,1725315037909,-287.75747,0.00015,2]
[337009536,1725315039911,-400.07483383,0.00015,2]
[337009537,1725315039923,-745.83403878,0.00015,2]
[337009538,1725315039935,-5464.19112739,0.00015,2]
[337009539,1725315040050,-269672.70518086,0.00015,2]
[337009545,1725315040165,-325.47325926,0.00015,2]
[337009547,1725315040178,-510.215,0.00015,2]
[337009549,1725315040192,-808.91004378,0.00015,2]
[337009568,1725315045232,-9477.71781707,0.0001472,2]
[337009569,1725315045242,-25300.04200189,0.00015,2]
[337009570,1725315045252,-88183.65579108,0.00015,2]
[337009590,1725315045765,-157.40526554,0.000149,2]
[337009591,1725315045775,-1443.68020009,0.00015,2]
[337009592,1725315046029,-6195.03658416,0.00015,2]
[337009593,1725315254700,161.18,0.00010959,2]
[337009594,1725315529828,550.0,0.00011,2]
[337009595,1725315658722,469.35,0.00011862,2]
[337009596,1725315733538,160.0,0.00013,2]
[337009597,1725315801271,170.66,0.00010959,2]
[337009598,1725315882119,150.0,0.00025,61]
[337009599,1725315885091,150.0,0.00025,61]
[337009600,1725315885806,150.0,0.00025,61]
[337009601,1725315886318,150.0,0.00025,61]
[337009602,1725315886921,150.0,0.00025,61]
[337009603,1725315887380,150.0,0.00025,61]
[337009604,1725315887911,150.0,0.00025,61]
[337009605,1725315888573,150.0,0.00025,61]
[337009606,1725315889001,150.0,0.00025,61]
[337009607,1725315889569,150.0,0.00025,61]
[337009608,1725315890108,150.0,0.00025,61]
[337009609,1725315890688,150.0,0.00025,61]
[337009610,1725315891799,150.0,0.00025,61]
[337009611,1725315892361,150.0,0.00025,61]
[337009612,1725315892941,150.0,0.00025,61]
[337009613,1725315893503,150.0,0.00025,61]
[337009614,1725315893666,150.0,0.00025,61]
[337009615,1725315894087,150.0,0.00025,61]
[337009616,1725315894615,150.0,0.00025,61]
[337009617,1725315895172,150.0,0.00025,61]
[337009618,1725315900045,150.0,0.00025,62]
[337009619,1725315900742,150.0,0.00025,62]
[337009620,1725315901219,150.0,0.00025,62]
[337009621,1725315901740,150.0,0.00025,62]
[337009622,1725315902343,150.0,0.00025,62]
[337009623,1725315902833,150.0,0.00025,62]
[337009624,1725315903400,150.0,0.00025,62]
[337009625,1725315903935,150.0,0.00025,62]
[337009626,1725315904497,150.0,0.00025,62]
[337009627,1725315905058,150.0,0.00025,62]
[337009628,1725315905584,150.0,0.00025,62]
[337009629,1725315906155,150.0,0.00025,62]
[337009630,1725315906730,150.0,0.00025,62]
[337009631,1725315907438,150.0,0.00025,62]
[337009632,1725315907939,150.0,0.00025,62]
[337009633,1725315908613,150.0,0.00025,62]
[337009634,1725315909076,150.0,0.00025,62]
[337009635,1725315909677,150.0,0.00025,62]
[337009636,1725315910303,150.0,0.00025,62]
[337009637,1725315910852,150.0,0.00025,62]
[337009638,1725315915627,150.0,0.00025,63]
[337009639,1725315916280,150.0,0.00025,63]
[337009640,1725315916820,150.0,0.00025,63]
[337009641,1725315917381,150.0,0.00025,63]
[337009642,1725315917957,150.0,0.00025,63]
[337009643,1725315918752,150.0,0.00025,63]
[337009644,1725315919156,150.0,0.00025,63]
[337009645,1725315919746,150.0,0.00025,63]
[337009646,1725315920364,150.0,0.00025,63]
[337009647,1725315920946,150.0,0.00025,63]
[337009648,1725315921571,150.0,0.00025,63]
[337009649,1725315922107,150.0,0.00025,63]
[337009650,1725315922710,150.0,0.00025,63]
[337009651,1725315923326,150.0,0.00025,63]
[337009652,1725315923904,150.0,0.00025,63]
[337009653,1725315924517,150.0,0.00025,63]
[337009654,1725315925100,150.0,0.00025,63]
[337009655,1725315925636,150.0,0.00025,63]
[337009656,1725315926217,150.0,0.00025,63]
[337009657,1725315926835,150.0,0.00025,63]
[337009658,1725315934237,150.0,0.00025,64]
[337009659,1725315934987,150.0,0.00025,64]
[337009660,1725315935477,150.0,0.00025,64]
[337009661,1725315936036,150.0,0.00025,64]
[337009662,1725315936566,150.0,0.00025,64]
[337009663,1725315937190,150.0,0.00025,64]
[337009664,1725315937737,150.0,0.00025,64]
[337009665,1725315938755,150.0,0.00025,64]
[337009666,1725315938960,150.0,0.00025,64]
[337009667,1725315939562,150.0,0.00025,64]
[337009668,1725315940118,150.0,0.00025,64]
[337009669,1725315940633,150.0,0.00025,64]
[337009670,1725315941207,150.0,0.00025,64]
[337009671,1725315941774,150.0,0.00025,64]
[337009672,1725315942313,150.0,0.00025,64]
[337009673,1725315942915,150.0,0.00025,64]
[337009674,1725315943456,150.0,0.00025,64]
[337009675,1725315944035,150.0,0.00025,64]
[337009676,1725315944651,150.0,0.00025,64]
[337009677,1725315945276,150.0,0.00025,64]
[337009678,1725315956954,150.0,0.00025,65]
[337009679,1725315957544,150.0,0.00025,65]
[337009680,1725315958091,150.0,0.00025,65]
[337009681,1725315958663,150.0,0.00025,65]
[337009682,1725315959358,150.0,0.00025,65]
[337009683,1725315959876,150.0,0.00025,65]
[337009684,1725315960477,150.0,0.00025,65]
[337009685,1725315961121,150.0,0.00025,65]
[337009686,1725315961707,150.0,0.00025,65]
[337009687,1725315962329,150.0,0.00025,65]
[337009688,1725315963568,150.0,0.00025,65]
[337009689,1725315964194,150.0,0.00025,65]
[337009690,1725315964269,150.0,0.00025,65]
[337009691,1725315964828,150.0,0.00025,65]
[337009692,1725315965477,150.0,0.00025,65]
[337009693,1725315971554,150.0,0.00025,68]
[337009694,1725315972201,150.0,0.00025,68]
[337009695,1725315972776,150.0,0.00025,68]
[337009696,1725315973368,150.0,0.00025,68]
[337009697,1725315973945,150.0,0.00025,68]
[337009698,1725315974551,150.0,0.00025,68]
[337009699,1725315975123,150.0,0.00025,68]
[337009700,1725315975706,150.0,0.00025,68]
[337009701,1725315976290,150.0,0.00025,68]
[337009702,1725315976878,150.0,0.00025,68]
[337009703,1725315977425,150.0,0.00025,68]
[337009704,1725315978047,150.0,0.00025,68]
[337009705,1725315978726,150.0,0.00025,68]
[337009706,1725315979523,150.0,0.00025,68]
[337009707,1725315979935,150.0,0.00025,68]
[337009708,1725315980575,150.0,0.00025,68]
[337009709,1725315981192,150.0,0.00025,68]
[337009710,1725315981782,150.0,0.00025,68]
[337009711,1725315982420,150.0,0.00025,68]
[337009712,1725315983038,150.0,0.00025,68]
[337009757,1725316231895,-469.02406266,0.00013058,2]
[337009759,1725316231907,-415.22091175,0.00013058,2]
[337009761,1725316231919,-1004.23896959,0.00013058,2]
[337009763,1725316231928,-1000.0,0.00013123,2]
[337009766,1725316231938,-245.01,0.00013252,2]
[337009767,1725316231948,-54.22440779,0.00013265,2]
[337009768,1725316231959,-617.617,0.00013265,2]
[337009769,1725316231971,-253.90915453,0.00013265,2]
[337009770,1725316231983,-2204.70442374,0.00013265,2]
[337009771,1725316231994,-379.39501394,0.00013265,2]
[337009772,1725316232004,-786.8,0.00013273,2]
[337009773,1725316232013,-155.52,0.00013438,2]
[337009774,1725316232023,-150.0,0.00013471,2]
[337009775,1725316232033,-950.0,0.00013485,2]
[337009776,1725316232042,-238.35,0.00013564,2]
[337009777,1725316232052,-554.84,0.00013565,2]
[337009778,1725316232061,-300.0,0.00013587,2]
[337009779,1725316232072,-1944.86,0.00013588,2]
[337009780,1725316232081,-250.0,0.00013589,2]
[337009781,1725316232091,-172.83,0.0001359,2]
[337009782,1725316232101,-18072.54346422,0.00013625,2]
[337009783,1725316232121,-450.72022031,0.00013625,2]
[337009784,1725316232134,-5376.73631547,0.00013625,2]
[337009785,1725316232144,-203.11825953,0.00013661,2]
[337009786,1725316232155,-46.88174047,0.00013661,2]
[337009787,1725316232165,-250.0,0.00013665,2]
[337009788,1725316232174,-634.70842453,0.000139,2]
[337009789,1725316232189,-793.64994043,0.000139,2]
[337009790,1725316232201,-2458.95823504,0.000139,2]
[337009791,1725316232211,-499.99,0.00013951,2]
[337009792,1725316232224,-550.04176496,0.0001399,2]